bitfinex/quotes_ETHUSD_20240925
["timestamp","ask_amount","ask_price","bid_price","bid_amount"]
[1727273327181,0.11633149,2630.8,2630.7,7.17922804]
[1727273327550,0.0422035,2630.9,2630.8,3.80112]
[1727273327855,0.0422035,2630.9,2630.8,4.8991548]
[1727273329001,0.0422035,2630.9,2630.5,5.7361678]
[1727273329148,0.0422035,2630.9,2630.6,2.82805804]
[1727273329452,0.0422035,2630.9,2630.8,6.62917804]
[1727273329652,0.15863099,2630.9,2630.8,6.62917804]
[1727273330670,0.15863099,2630.9,2630.8,7.17917804]
[1727273333190,0.15863099,2630.9,2630.8,2.82805804]
[1727273333498,0.15863099,2630.9,2630.8,3.80112]
[1727273334286,0.15863099,2630.9,2630.8,4.35112]
[1727273335392,0.15863099,2630.9,2630.7,3.80118]
[1727273336864,0.15863099,2630.9,2630.8,3.80112]
[1727273337392,0.15863099,2630.9,2630.6,6.62940804]
[1727273337393,0.15863099,2630.9,2630.6,3.8013]
[1727273337591,0.15863099,2630.9,2630.8,3.80112]
[1727273338619,0.15863099,2630.9,2630.8,8.22221984]
[1727273338817,0.15863099,2630.9,2630.8,5.3941618]
[1727273339380,0.15863099,2630.9,2630.8,4.35112]
[1727273339582,0.6153,2631.4,2630.9,3.80091]
[1727273339886,0.6153,2631.4,2631.0,3.80077]
[1727273340725,3.80059,2631.2,2630.7,4.58168]
[1727273340877,0.380059,2631.1,2630.9,3.80097]
[1727273341082,4.41556,2631.4,2630.9,3.80097]
[1727273341532,4.41556,2631.4,2630.7,3.80118]
[1727273341694,4.41556,2631.4,2630.5,0.81]
[1727273341695,3.80062,2631.2,2630.6,3.80132]
[1727273341888,3.80062,2631.2,2630.7,3.80122]
[1727273342082,0.10488424,2631.1,2630.7,3.80122]
[1727273342485,0.6153,2631.0,2630.3,3.80174]
[1727273342686,0.72009261,2631.0,2630.8,3.80112]
[1727273342885,0.72009261,2631.0,2630.9,3.80098]
[1727273342886,0.10479261,2631.0,2630.9,3.80098]
[1727273343195,0.6153,2631.4,2631.0,3.80081]
[1727273345129,1.09663283,2631.4,2630.8,3.80102]
[1727273345438,0.6153,2631.4,2631.0,3.80076]
[1727273345641,0.10482508,2631.3,2631.0,3.80076]
[1727273346197,0.10482508,2631.3,2631.0,7.60152]
[1727273346420,0.10482508,2631.3,2631.1,3.80064]
[1727273346623,0.10482508,2631.3,2631.0,3.80075]
[1727273348517,0.6153,2631.2,2630.7,3.80125]
[1727273348724,0.6153,2631.2,2630.9,3.80096]
[1727273348897,0.10484749,2631.1,2631.0,3.80081]
[1727273349099,0.10484749,2631.1,2630.9,3.80096]
[1727273349502,0.10484749,2631.1,2630.9,3.80091]
[1727273349732,0.10484749,2631.1,2630.7,3.80117]
[1727273349937,3.80075,2631.1,2630.6,3.80131]
[1727273350177,0.10483727,2631.0,2630.5,3.80153]
[1727273350384,3.90578727,2631.0,2630.5,3.80153]
[1727273350564,0.10483727,2631.0,2630.6,3.80134]
[1727273351230,0.10483727,2631.0,2630.5,3.80153]
[1727273351231,0.10483727,2631.0,2630.7,3.80125]
[1727273351676,0.10483727,2631.0,2630.7,3.8012]
[1727273352075,0.10483727,2631.0,2630.9,3.80098]
[1727273352237,0.6153,2631.2,2631.0,3.80082]
[1727273352574,0.6153,2631.2,2630.8,3.801]
[1727273352946,0.39787834,2631.5,2631.1,3.80059]
[1727273353163,0.39787834,2631.5,2631.2,3.80048]
[1727273353459,0.6153,2631.6,2631.1,3.80059]
[1727273353657,0.10481994,2631.4,2631.2,3.80047]
[1727273353856,0.10481994,2631.4,2631.1,3.80059]
[1727273353857,0.10415576,2631.5,2631.3,3.80033]
[1727273354375,0.10415576,2631.5,2631.3,3.80032]
[1727273354699,0.10415576,2631.5,2631.2,3.80054]
[1727273354854,0.10415576,2631.5,2631.1,3.80062]
[1727273355165,0.55609934,2631.5,2631.1,3.80062]
[1727273355370,0.10415576,2631.5,2631.2,3.80047]
[1727273355543,0.6153,2631.3,2630.6,0.7557]
[1727273355748,0.6153,2631.3,2630.4,11.1557]
[1727273355749,0.441557,2631.2,2630.4,11.1557]
[1727273355947,3.80077,2631.1,2630.4,4.55732]
[1727273356186,0.6153,2631.0,2630.2,0.7557]
[1727273356392,0.6153,2631.3,2631.0,3.80081]
[1727273356590,1.44728658,2631.3,2631.0,3.80081]
[1727273356773,0.6153,2631.3,2630.9,3.80092]
[1727273356979,0.6153,2631.3,2630.7,3.58375804]
[1727273356980,4.41571,2631.3,2630.8,3.80105]
[1727273357234,0.10433177,2631.2,2630.9,3.80097]
[1727273357728,0.6153,2631.3,2630.9,3.80097]
[1727273357729,0.10409322,2631.1,2630.9,3.80097]
[1727273357940,0.10409322,2631.1,2630.9,3.80092]
[1727273358134,0.10409322,2631.1,2630.7,3.80115]
[1727273358135,4.41579,2631.3,2630.8,3.8011]
[1727273358435,0.104083,2631.0,2630.9,3.80085]
[1727273358595,1.436901,2631.3,2630.9,3.80085]
[1727273358812,1.436901,2631.3,2630.7,3.80117]
[1727273358813,0.10410624,2631.0,2630.7,7.60231]
[1727273359028,5.237371,2631.3,2630.5,4.61048]
[1727273359213,0.10409603,2630.9,2630.7,3.80117]
[1727273359532,0.5237371,2631.2,2630.6,3.80134]
[1727273359738,0.10407739,2630.8,2630.7,3.80126]
[1727273359951,4.41573,2631.3,2630.6,3.80134]
[1727273360233,4.41573,2631.3,2630.8,3.80104]
[1727273360449,4.41573,2631.3,2630.7,3.80115]
[1727273360648,3.80056,2631.2,2630.6,3.80129]
[1727273360848,0.10409866,2631.2,2630.5,3.809]
[1727273361138,3.90470866,2631.2,2630.7,3.80126]
[1727273361345,4.35669153,2631.2,2630.7,3.80126]
[1727273361707,3.80069,2631.1,2630.7,3.80126]
[1727273361908,3.8009,2631.0,2630.5,3.0]
[1727273362115,0.6153,2630.9,2630.5,3.80146]
[1727273362429,0.71936802,2630.9,2630.6,3.80128]
[1727273363341,0.10406802,2630.9,2630.7,3.80119]
[1727273363508,0.6153,2631.1,2630.8,3.80112]
[1727273364503,0.10401173,2631.0,2630.8,3.80112]
[1727273364936,0.10401173,2631.0,2630.7,3.80119]
[1727273365136,0.10401173,2631.0,2630.9,3.80098]
[1727273365338,0.10401173,2631.0,2630.8,3.80112]
[1727273366275,0.10401173,2631.0,2630.9,3.80098]
[1727273366942,1.58415921,2631.3,2630.9,3.80098]
[1727273367150,1.58415921,2631.3,2631.0,3.80081]
[1727273367544,1.58415921,2631.3,2631.1,3.80065]
[1727273368278,2.61147169,2631.4,2631.1,3.80065]
[1727273368279,0.10407023,2631.2,2631.1,3.80065]
[1727273368634,0.6153,2631.4,2631.1,3.80065]
[1727273368976,0.6153,2631.4,2631.0,3.80081]
[1727273369136,1.68828512,2631.3,2631.0,3.80081]
[1727273369332,0.10412591,2631.3,2631.0,3.80081]
[1727273369647,1.68828512,2631.3,2631.0,3.80081]
[1727273370237,1.68828512,2631.3,2630.8,3.80104]
[1727273370481,1.68828512,2631.3,2630.7,3.80119]
[1727273370482,3.80062,2631.2,2630.7,3.80119]
[1727273370631,3.80062,2631.2,2630.8,3.80104]
[1727273370632,0.6153,2631.1,2630.8,3.80104]
[1727273370835,0.71946679,2631.1,2630.8,3.80104]
[1727273371265,0.71946679,2631.1,2630.6,3.8013]
[1727273371468,2.303626,2631.1,2630.8,3.80101]
[1727273371676,2.303626,2631.1,2630.5,2.30163069]
[1727273371677,8.32098679,2631.1,2630.6,3.80141]
[1727273371838,6.104316,2631.1,2630.6,3.80141]
[1727273372039,6.104316,2631.1,2630.7,3.80125]
[1727273372459,0.71946679,2631.1,2630.7,3.80118]
[1727273372890,0.71946679,2631.1,2630.9,3.8009]
[1727273373266,0.10416679,2631.1,2630.9,3.80088]
[1727273373498,0.10416679,2631.1,2631.0,3.80083]
[1727273373696,2.19945921,2631.3,2630.9,3.80088]
[1727273373999,0.6153,2631.3,2631.0,3.80083]
[1727273374303,2.19945921,2631.3,2631.0,3.80083]
[1727273375169,0.10405514,2631.2,2631.0,3.80083]
[1727273375366,2.19945921,2631.3,2631.0,7.60157]
[1727273375571,0.10404492,2631.1,2631.0,3.80074]
[1727273375811,2.19945921,2631.3,2631.0,3.80074]
[1727273375812,1.58415921,2631.3,2631.0,3.80074]
[1727273376024,1.61550561,2631.4,2631.1,3.80065]
[1727273376515,2.45805437,2631.4,2630.7,0.8207]
[1727273376701,3.80141,2630.6,2630.3,7.4]
[1727273376901,3.80141,2630.6,2629.9,4.57061]
[1727273376902,3.80163,2630.5,2629.9,4.57061]
[1727273377208,4.41679,2630.6,2630.0,0.33923418]
[1727273377411,3.80171,2630.4,2629.9,3.80233]
[1727273377614,3.80207,2630.2,2629.6,0.7683]
[1727273377923,0.6153,2629.9,2629.3,3.80316]
[1727273378219,0.6153,2629.9,2629.5,3.80299]
[1727273378423,0.6153,2629.9,2629.3,3.80315]
[1727273378590,0.6153,2629.9,2629.0,0.7814712]
[1727273378591,0.83524592,2629.9,2629.0,0.7814712]
[1727273378781,0.83524592,2629.9,2629.4,3.80307]
[1727273378983,0.83524592,2629.9,2629.6,3.80276]
[1727273378984,0.6153,2629.9,2629.6,3.80276]
[1727273379210,0.6153,2629.9,2629.3,3.80326]
[1727273379412,4.41786,2629.9,2629.3,3.80326]
[1727273379709,4.41786,2629.9,2629.2,3.80334]
[1727273379710,4.41786,2629.9,2629.4,3.8031]
[1727273379941,4.41782,2629.9,2629.4,3.8031]
[1727273380155,3.80259,2629.8,2629.3,3.80328]
[1727273380303,5.239828,2629.9,2629.3,3.80328]
[1727273380701,0.5239828,2629.8,2629.2,3.80334]
[1727273380941,0.5239828,2629.8,2629.0,4.6204512]
[1727273380942,0.6153,2629.6,2629.0,0.0070712]
[1727273381241,7.24693804,2629.1,2629.0,0.0070712]
[1727273381446,0.6153,2629.1,2629.0,0.0070712]
[1727273383601,0.6153,2629.5,2629.0,0.0070712]
[1727273383802,5.240426,2629.5,2629.0,0.0070712]
[1727273385643,5.240406,2629.5,2629.0,0.0070712]
[1727273386699,5.240406,2629.5,2629.0,3.8107412]
[1727273386900,1.437396,2629.5,2629.0,3.8107412]
[1727273387127,0.6153,2629.5,2629.0,3.8107412]
[1727273387438,0.6153,2629.5,2629.2,3.80341]
[1727273387943,0.6153,2629.5,2629.0,3.8107112]
[1727273388237,4.41832,2629.5,2629.0,0.0070712]
[1727273388446,4.41832,2629.5,2629.0,3.8107912]
[1727273389043,0.39811253,2629.9,2629.0,0.8995954]
[1727273389249,0.39811253,2629.9,2629.4,3.80313]
[1727273389250,0.6153,2629.8,2629.4,3.80313]
[1727273389449,0.39811253,2629.9,2629.5,3.80298]
[1727273389804,0.39811253,2629.9,2629.6,3.80284]
[1727273390562,0.39811253,2629.9,2629.6,4.563422]
[1727273390708,3.8026,2629.8,2629.3,3.80327]
[1727273391060,3.8026,2629.8,2629.3,7.60648]
[1727273391342,3.8026,2629.8,2629.3,3.8032]
[1727273391642,3.8026,2629.8,2629.1,4.56721]
[1727273391643,4.41809,2629.7,2629.1,4.56717]
[1727273392546,4.41809,2629.7,2629.2,3.80343]
[1727273392840,0.6153,2629.7,2629.2,3.80343]
[1727273393017,4.41805,2629.7,2629.2,3.80343]
[1727273393363,0.6153,2629.1,2629.0,0.0070712]
[1727273393646,0.6153,2629.3,2629.0,0.0070712]
[1727273394437,0.6153,2629.3,2629.0,3.8107012]
[1727273394911,14.4133351,2629.8,2629.0,3.8107212]
[1727273394912,3.803,2629.5,2629.0,3.8107212]
[1727273395276,0.6153,2629.6,2629.0,0.0070712]
[1727273395478,0.6153,2629.6,2629.1,3.80348]
[1727273395881,0.6153,2629.6,2629.0,0.0070712]
[1727273396081,4.42291948,2629.5,2629.0,3.8107812]
[1727273396415,0.6153,2629.6,2629.3,3.80324]
[1727273396572,3.80259,2629.8,2629.2,3.80331]
[1727273396774,3.80286,2629.6,2629.1,0.7896]
[1727273396975,0.6153,2629.5,2629.1,3.80356]
[1727273397382,0.6153,2629.7,2629.3,3.80328]
[1727273397609,0.6153,2629.7,2629.4,3.80305]
[1727273397916,0.39811253,2629.9,2629.5,3.80292]
[1727273398123,4.20056253,2629.9,2629.4,3.80305]
[1727273398412,0.39811253,2629.9,2629.5,3.80297]
[1727273398573,0.6153,2629.4,2629.0,0.0070712]
[1727273398765,0.6153,2629.8,2629.0,4.6204112]
[1727273398981,1.44156721,2629.8,2629.0,4.6204112]
[1727273399407,3.80286,2629.6,2629.0,4.6204112]
[1727273399611,3.80285,2629.7,2629.1,3.80358]
[1727273399920,3.80284,2629.7,2629.1,3.80358]
[1727273400070,3.80284,2629.7,2629.2,3.80331]
[1727273400271,4.41789,2629.8,2629.3,3.8032]
[1727273400468,0.39811253,2629.9,2629.4,2.90411947]
[1727273400676,0.39811253,2629.9,2629.7,0.7638]
[1727273400978,0.39811253,2629.9,2629.3,0.55]
[1727273400979,4.81583253,2629.9,2629.3,8.92015]
[1727273401182,4.81586253,2629.9,2629.4,0.97625161]
[1727273401615,4.81592253,2629.9,2629.2,3.8034]
[1727273401783,3.803,2629.5,2629.0,0.0070712]
[1727273401986,0.6153,2629.4,2629.0,0.0070712]
[1727273402324,0.6153,2629.4,2629.0,3.8107912]
[1727273402808,0.6153,2629.4,2629.0,0.0070712]
[1727273402809,4.41851,2629.4,2629.0,0.0070712]
[1727273403109,3.80307,2629.5,2629.0,0.0070712]
[1727273403315,3.93299684,2629.5,2629.0,0.0070712]
[1727273403526,0.6153,2629.2,2629.0,0.0070712]
[1727273403750,4.41882,2629.2,2629.0,0.0070712]
[1727273404014,0.6153,2629.2,2629.0,0.0070712]
[1727273404173,3.80321,2629.4,2629.0,0.0070712]
[1727273404372,4.41851,2629.4,2629.0,0.0070712]
[1727273404575,0.09560619,2629.3,2629.1,0.7974]
[1727273404821,0.39811253,2629.9,2629.2,3.80343]
[1727273404822,4.20060253,2629.9,2629.2,3.80343]
[1727273405011,4.81590253,2629.9,2629.4,3.80306]
[1727273405507,4.81593253,2629.9,2629.3,3.80327]
[1727273405715,1.01341253,2629.9,2629.4,3.80313]
[1727273405919,1.01341253,2629.9,2629.5,3.80292]
[1727273406135,4.81586253,2629.9,2629.4,7.60619]
[1727273406337,1.01341253,2629.9,2629.5,3.803]
[1727273406621,1.01341253,2629.9,2629.5,3.80297]
[1727273406841,0.6153,2629.9,2629.5,3.80297]
[1727273407381,4.41773,2629.9,2629.4,4.6477192]
[1727273407594,4.41773,2629.9,2629.4,8.4507792]
[1727273407794,3.80259,2629.8,2629.1,4.60088]
[1727273407994,3.80265,2629.8,2629.1,4.60088]
[1727273408203,3.80265,2629.8,2629.0,3.0070712]
[1727273408204,0.6153,2629.9,2629.0,0.0070712]
[1727273408416,3.80272,2629.7,2629.2,3.80336]
[1727273408629,4.563488,2629.6,2629.0,3.8106912]
[1727273408826,3.80271,2629.7,2629.0,3.8106912]
[1727273409035,3.80286,2629.6,2629.0,3.8106912]
[1727273409527,3.80286,2629.6,2629.2,3.80343]
[1727273409683,3.80286,2629.6,2629.0,3.8106612]
[1727273409684,0.6153,2629.5,2629.0,3.8106612]
[1727273409882,0.6153,2629.5,2629.2,3.80342]
[1727273410085,0.6153,2629.5,2629.0,3.8106612]
[1727273410323,0.6153,2629.5,2629.0,0.0070712]
[1727273410531,3.80339,2629.3,2629.0,0.0070712]
[1727273410893,3.80345,2629.2,2629.0,0.0070712]
[1727273411197,3.80358,2629.1,2629.0,0.0070712]
[1727273411512,3.80344,2629.2,2629.0,0.0070712]
[1727273411719,3.80358,2629.1,2629.0,0.0070712]
[1727273411889,4.245229,2629.3,2629.0,0.0070712]
[1727273412891,3.80345,2629.2,2629.0,0.0070712]
[1727273413217,4.245209,2629.3,2629.0,0.0070712]
[1727273413419,0.441869,2629.3,2629.0,0.0070712]
[1727273413683,3.8026,2629.8,2629.1,0.8168]
[1727273413816,4.4179,2629.8,2629.3,3.80328]
[1727273414263,4.4179,2629.8,2629.2,3.80333]
[1727273414457,3.80279,2629.7,2629.2,3.80333]
[1727273414664,3.80308,2629.5,2629.0,0.0070712]
[1727273415034,3.80308,2629.5,2629.0,3.8107712]
[1727273415429,3.8028,2629.7,2629.1,3.80351]
[1727273415633,4.85966,2629.8,2629.3,3.80327]
[1727273415830,4.668938,2629.7,2629.1,7.607]
[1727273416123,4.668938,2629.7,2629.2,3.8034]
[1727273416321,8.471768,2629.7,2629.1,3.80349]
[1727273416528,4.668938,2629.7,2629.1,3.80349]
[1727273416736,4.668938,2629.7,2629.1,7.60698]
[1727273416933,4.668938,2629.7,2629.1,3.80349]
[1727273417234,4.668938,2629.7,2629.2,3.80343]
[1727273417422,3.80293,2629.6,2629.1,3.8035]
[1727273417616,0.866218,2629.7,2629.2,3.80342]
[1727273417859,4.668938,2629.7,2629.2,3.80342]
[1727273419020,4.7116208,2629.6,2629.0,3.8107012]
[1727273419248,3.80353,2629.2,2629.0,0.0070712]
[1727273419630,0.6153,2629.3,2629.0,0.0070712]
[1727273420360,3.80352,2629.2,2629.0,0.0070712]
[1727273420538,4.625727,2629.2,2629.0,0.0070712]
[1727273421656,0.822207,2629.2,2629.0,0.0070712]
[1727273421979,4.4186,2629.3,2629.0,0.0070712]
[1727273422749,8.67317295,2629.1,2629.0,0.0070712]
[1727273423092,8.67317295,2629.1,2627.4,3.58938122]
[1727273423093,8.67317295,2629.1,2627.4,0.8307002]
[1727273423094,6.80474,2628.3,2627.4,0.8307002]
[1727273423405,11.87549937,2628.3,2627.4,0.0384176]
[1727273423552,6.80474,2628.3,2627.4,0.0384176]
[1727273423742,8.39980641,2628.3,2627.5,3.8058]
[1727273423966,9.01506404,2628.3,2627.5,3.8058]
[1727273424284,8.90139005,2628.3,2627.5,3.8058]
[1727273424593,8.90139005,2628.3,2627.6,3.80569]
[1727273424594,5.90139005,2628.3,2627.6,3.80569]
[1727273424783,5.90139005,2628.3,2627.7,3.80558]
[1727273424941,5.90139005,2628.3,2627.8,3.80543]
[1727273425147,5.39944817,2628.6,2628.0,4.57524]
[1727273425341,5.39944817,2628.6,2628.0,0.7702]
[1727273425342,3.80433,2628.6,2628.0,0.7702]
[1727273425990,3.80433,2628.6,2628.0,4.57528]
[1727273426191,3.80447,2628.5,2628.0,4.57528]
[1727273426393,3.8046,2628.4,2628.0,0.7702]
[1727273426685,3.80468,2628.4,2628.0,0.7702]
[1727273426892,3.8047,2628.4,2627.9,3.80522]
[1727273427063,0.38047,2628.4,2627.7,4.58103]
[1727273427454,4.18514,2628.4,2627.9,3.80522]
[1727273429282,3.80474,2628.3,2627.7,8.38656]
[1727273429603,3.80474,2628.3,2627.8,3.80534]
[1727273430299,3.80474,2628.3,2627.7,0.7755]
[1727273431509,3.80474,2628.3,2627.7,4.5811]
[1727273431713,3.80474,2628.3,2627.8,3.80544]
[1727273432002,4.18507,2628.4,2627.7,4.5811]
[1727273432187,0.6153,2628.7,2628.0,3.80517]
[1727273432188,7.6088,2628.6,2628.0,3.80517]
[1727273432448,3.80445,2628.5,2628.0,3.80517]
[1727273432703,3.80436,2628.6,2628.0,3.80517]
[1727273432993,7.60904,2628.5,2627.9,3.80529]
[1727273433164,8.431474,2628.5,2627.9,7.61053]
[1727273433364,8.431454,2628.5,2627.9,3.80524]
[1727273433596,8.431444,2628.5,2627.9,7.61047]
[1727273433765,4.626914,2628.5,2627.9,7.61047]
[1727273433967,4.626914,2628.5,2627.9,3.80523]
[1727273434166,3.80468,2628.4,2627.9,3.80523]
[1727273434371,0.8431594,2628.4,2627.9,3.80523]
[1727273434665,3.80437,2628.6,2628.1,3.80502]
[1727273435590,3.80448,2628.5,2627.9,3.80518]
[1727273435768,3.80448,2628.5,2628.0,3.80515]
[1727273436585,7.60901,2628.5,2628.0,3.80515]
[1727273436799,4.626911,2628.5,2628.0,3.80515]
[1727273437005,8.431441,2628.5,2628.0,3.80515]
[1727273437175,4.626911,2628.5,2628.0,3.80515]
[1727273437514,3.80398,2628.9,2628.4,3.80453]
[1727273437714,0.39823363,2628.6,2628.4,3.80453]
[1727273438224,0.39823363,2628.6,2628.5,4.56505]
[1727273438408,11.87855,2629.4,2628.7,3.80403]
[1727273438409,3.80334,2629.3,2628.7,3.80403]
[1727273438576,3.8038,2629.0,2628.5,4.56493]
[1727273438916,3.80388,2628.9,2628.5,0.7606]
[1727273439375,3.8038,2629.0,2628.5,0.7606]
[1727273439570,3.80368,2629.1,2628.5,4.56492]
[1727273439947,3.8035,2629.2,2628.5,4.56492]
[1727273440113,3.80374,2629.0,2628.5,4.56492]
[1727273440410,3.80374,2629.0,2628.6,3.80429]
[1727273440587,3.80374,2629.0,2628.5,4.56492]
[1727273441295,4.2454,2629.2,2628.2,0.0384176]
[1727273441296,3.80434,2628.6,2628.2,0.7998176]
[1727273441513,3.80434,2628.6,2628.2,0.0384176]
[1727273441514,4.184774,2628.6,2628.2,0.0384176]
[1727273441691,3.80468,2628.4,2628.2,0.0384176]
[1727273441889,3.80474,2628.3,2628.2,0.0384176]
[1727273442090,3.80468,2628.4,2628.2,0.0384176]
[1727273442479,3.80474,2628.3,2628.2,0.0384176]
[1727273443307,4.42004,2628.3,2628.2,0.0384176]
[1727273444995,7.42004,2628.3,2628.2,0.0384176]
[1727273445229,9.40791635,2628.3,2628.2,0.0384176]
[1727273445401,7.42004,2628.3,2628.2,0.0384176]
[1727273445722,10.76462529,2628.3,2628.2,0.0384176]
[1727273446110,11.1625955,2628.3,2628.2,0.0384176]
[1727273446509,10.76425565,2628.3,2628.2,0.0384176]
[1727273449321,9.17471915,2628.3,2628.2,0.0384176]
[1727273449494,10.76425565,2628.3,2628.2,0.0384176]
[1727273450103,9.17471915,2628.3,2628.2,0.0384176]
[1727273452144,10.76425565,2628.3,2628.2,0.0384176]
[1727273452328,9.17471915,2628.3,2628.2,0.0384176]
[1727273452652,10.76425565,2628.3,2628.2,0.0384176]
[1727273453919,11.16261253,2628.3,2628.2,0.0384176]
[1727273454755,11.71261253,2628.3,2628.2,0.0384176]
[1727273455012,10.12307603,2628.3,2628.2,0.0384176]
[1727273455163,12.10980311,2628.3,2628.2,0.0384176]
[1727273455463,10.5212592,2628.3,2628.2,0.0384176]
[1727273455675,10.5212592,2628.3,2627.4,0.0384176]
[1727273455676,3.80589,2627.5,2627.4,0.0384176]
[1727273455839,10.89490374,2627.5,2627.4,0.0384176]
[1727273456919,12.48365467,2627.5,2627.4,0.0384176]
[1727273457470,10.89490374,2627.5,2627.4,0.0384176]
[1727273457686,12.48296064,2627.5,2627.4,0.0384176]
[1727273457862,14.31042603,2627.5,2627.4,0.0384176]
[1727273458232,12.72236913,2627.5,2627.4,0.0384176]
[1727273459974,10.43921814,2627.5,2626.6,0.0384176]
[1727273460136,4.42235,2626.7,2626.6,0.0384176]
[1727273460467,5.59264837,2626.7,2626.6,0.0384176]
[1727273460676,8.59264837,2626.7,2626.6,0.0384176]
[1727273462712,7.97734837,2626.7,2626.6,0.0384176]
[1727273462859,7.97734837,2626.7,2625.2,0.8277]
[1727273462860,7.89722374,2625.9,2625.2,0.8277]
[1727273463059,11.68694611,2625.9,2625.2,0.8277]
[1727273463499,11.68694611,2625.9,2625.0,0.0384176]
[1727273463678,8.21323237,2625.9,2625.0,0.8207176]
[1727273463851,11.68694611,2625.9,2625.0,0.8207176]
[1727273465766,8.9284366,2625.9,2625.0,0.0384176]
[1727273465964,9.32661816,2625.9,2625.0,0.0384176]
[1727273466373,3.80937,2625.1,2625.0,0.0384176]
[1727273466608,7.89838374,2625.1,2625.0,0.0384176]
[1727273466775,8.06354287,2625.1,2625.0,0.0384176]
[1727273466976,11.06354287,2625.1,2625.0,0.0384176]
[1727273467890,11.06354287,2625.1,2624.1,0.827]
[1727273467891,3.81024,2624.5,2624.4,0.045587]
[1727273468223,3.97492107,2624.5,2624.4,0.0649046]
[1727273468882,4.59022107,2624.5,2624.4,0.0649046]
[1727273469061,3.97492107,2624.5,2624.4,0.0649046]
[1727273469261,5.10080255,2624.5,2624.4,0.0649046]
[1727273471090,0.16468107,2624.5,2624.4,0.0649046]
[1727273471265,0.16468107,2624.5,2624.4,0.8426046]
[1727273471465,4.20845492,2624.7,2624.4,0.8426046]
[1727273471709,3.97447717,2624.6,2624.4,0.8426046]
[1727273472267,3.81024,2624.5,2624.4,0.8426046]
[1727273472502,5.40822508,2624.5,2624.4,0.0649046]
[1727273472707,4.79292508,2624.5,2624.4,0.0649046]
[1727273472917,0.98268508,2624.5,2624.4,0.0649046]
[1727273473200,0.16437287,2624.5,2624.4,0.0649046]
[1727273473518,7.62031,2624.6,2624.4,0.0649046]
[1727273473804,3.97467704,2624.5,2624.4,0.0649046]
[1727273474396,4.79299624,2624.5,2624.4,0.0649046]
[1727273474877,0.98275624,2624.5,2624.4,0.0649046]
[1727273475114,0.16443704,2624.5,2624.4,0.0649046]
[1727273475913,0.39840492,2624.7,2624.4,0.0649046]
[1727273476208,0.16437727,2624.5,2624.4,0.0649046]
[1727273476514,0.16437303,2624.5,2624.4,0.0649046]
[1727273477108,0.39840492,2624.7,2624.4,0.0649046]
[1727273477311,0.39840492,2624.7,2624.5,4.63252]
[1727273477512,3.80952,2625.0,2624.5,4.63252]
[1727273478020,7.46,2625.2,2624.5,0.8223]
[1727273478223,3.81007,2624.7,2624.5,0.8223]
[1727273478508,4.191107,2624.6,2624.5,0.8223]
[1727273478708,4.191107,2624.6,2624.4,0.0649046]
[1727273478885,0.381007,2624.6,2624.4,0.0649046]
[1727273479218,3.81024,2624.5,2624.4,0.0649046]
[1727273480321,3.81011,2624.6,2624.4,0.0649046]
[1727273480475,0.15568744,2624.5,2624.4,0.0649046]
[1727273482076,3.81011,2624.6,2624.4,0.0649046]
[1727273482290,0.15567712,2624.5,2624.4,0.0649046]
[1727273483917,3.80957,2625.0,2624.5,0.7666]
[1727273484100,3.80974,2624.9,2624.5,0.7666]
[1727273484270,3.80983,2624.8,2624.5,0.7666]
[1727273484812,4.552007,2625.0,2624.5,0.7666]
[1727273485016,0.742487,2625.0,2624.5,4.57684]
[1727273485305,4.2076245,2625.3,2624.8,4.6205]
[1727273485479,0.3984045,2625.3,2625.0,3.80952]
[1727273485815,0.3984045,2625.3,2624.9,3.80955]
[1727273485996,0.3984045,2625.3,2624.9,3.8288676]
[1727273486790,0.3984045,2625.3,2625.0,3.80948]
[1727273486991,0.3984045,2625.3,2625.0,3.8287976]
[1727273487486,0.3984045,2625.3,2625.0,0.0193176]
[1727273487685,0.14765339,2625.2,2625.0,0.0193176]
[1727273487892,0.3984045,2625.3,2625.0,0.0193176]
[1727273488103,3.95695339,2625.2,2625.0,0.0193176]
[1727273488619,3.80937,2625.1,2625.0,0.0193176]
[1727273488923,3.95701608,2625.1,2625.0,0.0193176]
[1727273498715,4.57231608,2625.1,2625.0,0.0193176]
[1727273499241,3.95701608,2625.1,2625.0,0.0193176]
[1727273499415,4.84934446,2625.1,2625.0,0.0193176]
[1727273500648,1.03997446,2625.1,2625.0,0.0193176]
[1727273500806,0.14764608,2625.1,2625.0,0.8038176]
[1727273501144,3.95701608,2625.1,2625.0,0.8038176]
[1727273501313,0.14764608,2625.1,2625.0,0.8038176]
[1727273502156,0.3984045,2625.3,2625.0,0.8038176]
[1727273502305,0.14510279,2625.1,2625.0,0.8038176]
[1727273502506,3.80891,2625.5,2625.0,0.8038176]
[1727273502708,3.95436266,2625.4,2625.0,0.0193176]
[1727273502904,6.64170444,2625.1,2625.0,0.0193176]
[1727273503229,6.78704817,2625.1,2625.0,0.0193176]
[1727273503428,7.90821599,2625.1,2625.0,0.0193176]
[1727273504157,10.90821599,2625.1,2625.0,0.0193176]
[1727273504561,8.07588155,2625.1,2625.0,0.0193176]
[1727273504855,8.69118155,2625.1,2625.0,0.0193176]
[1727273505657,10.68019806,2625.1,2625.0,0.0193176]
[1727273506357,8.69118155,2625.1,2625.0,0.0193176]
[1727273507520,11.08651928,2625.1,2625.0,0.0193176]
[1727273508257,8.69118155,2625.1,2625.0,0.0193176]
[1727273509544,11.09004175,2625.1,2625.0,0.0193176]
[1727273510056,8.07588155,2625.1,2625.0,0.0193176]
[1727273510220,10.07483344,2625.1,2625.0,0.0193176]
[1727273510628,8.07588155,2625.1,2625.0,0.0193176]
[1727273511420,3.26573981,2625.1,2625.0,0.0193176]
[1727273511621,0.14534373,2625.1,2625.0,0.8254176]
[1727273513173,1.59927284,2625.6,2625.1,0.8325]
[1727273513320,1.59927284,2625.6,2625.2,3.80922]
[1727273513522,1.73626619,2625.5,2625.1,0.8325]
[1727273513722,3.80903,2625.4,2625.1,0.8325]
[1727273513931,0.13693475,2625.3,2625.1,0.8325]
[1727273514384,0.13693475,2625.3,2625.1,0.8518176]
[1727273514962,5.54529759,2625.3,2625.1,0.8518176]
[1727273515275,10.48983318,2625.3,2625.1,0.8518176]